[Event "Titled Tuesday Blitz May 03 Late 2022"]
[White "Bernal Moro, Luis Javier"]
[Black "Richter, Nils"]
[WhiteFideId "2200236"]
[BlackFideId "12990809"]
[WhiteElo "2373"]
[BlackElo "2243"]
[Result "0-1"]
[Round "04"]
[TimeControl "180+1"]
[Date "2022.05.03"]
[WhiteClock "0:00:01"]
[BlackClock "0:00:12"]

1. Nf3 {[%clk 0:02:59]}  Nf6 {[%clk 0:02:58]} 2. c4 {[%clk 0:02:59]}  g6 {[%clk 0:02:57]} 3. Nc3 {[%clk 0:02:58]}  Bg7 {[%clk 0:02:58]} 4. e4 {[%clk 0:02:56]}  O-O {[%clk 0:02:58]} 5. d4 {[%clk 0:02:56]}  d6 {[%clk 0:02:57]} 6. Be2 {[%clk 0:02:56]}  e5 {[%clk 0:02:53]} 7. O-O {[%clk 0:02:56]}  Bg4 {[%clk 0:02:53]} 8. d5 {[%clk 0:02:53]}  a5 {[%clk 0:02:52]} 9. Be3 {[%clk 0:02:50]}  Na6 {[%clk 0:02:49]} 10. Nd2 {[%clk 0:02:50]}  Bd7 {[%clk 0:02:47]} 11. Rb1 {[%clk 0:02:42]}  Ne8 {[%clk 0:02:38]} 12. Qc2 {[%clk 0:02:36]}  f5 {[%clk 0:02:37]} 13. exf5 {[%clk 0:02:27]}  gxf5 {[%clk 0:02:36]} 14. f4 {[%clk 0:02:26]}  Nc5 {[%clk 0:02:31]} 15. Rbe1 {[%clk 0:02:20]}  e4 {[%clk 0:02:29]} 16. Nb3 {[%clk 0:02:15]}  Nxb3 {[%clk 0:02:25]} 17. axb3 {[%clk 0:02:15]}  b6 {[%clk 0:02:23]} 18. Kh1 {[%clk 0:02:15]}  Nf6 {[%clk 0:02:16]} 19. Rg1 {[%clk 0:02:11]}  Kh8 {[%clk 0:02:16]} 20. Qd2 {[%clk 0:02:07]}  Qe7 {[%clk 0:02:10]} 21. Nd1 {[%clk 0:02:05]}  Rae8 {[%clk 0:02:09]} 22. Bd4 {[%clk 0:01:30]}  Rg8 {[%clk 0:01:50]} 23. Ne3 {[%clk 0:01:29]}  Qf7 {[%clk 0:01:39]} 24. Qd1 {[%clk 0:01:20]}  Re7 {[%clk 0:01:31]} 25. Ref1 {[%clk 0:01:19]}  Ne8 {[%clk 0:01:28]} 26. Bxg7+ {[%clk 0:01:12]}  Qxg7 {[%clk 0:01:29]} 27. Qd2 {[%clk 0:01:07]}  Nf6 {[%clk 0:01:24]} 28. g3 {[%clk 0:01:03]}  Qf8 {[%clk 0:01:05]} 29. Rg2 {[%clk 0:01:02]}  Reg7 {[%clk 0:01:05]} 30. Rfg1 {[%clk 0:01:01]}  Bc8 {[%clk 0:01:04]} 31. Qd1 {[%clk 0:00:58]}  Nd7 {[%clk 0:01:02]} 32. Qd4 {[%clk 0:00:37]}  Qf6 {[%clk 0:01:01]} 33. Qxf6 {[%clk 0:00:27]}  Nxf6 {[%clk 0:01:02]} 34. h3 {[%clk 0:00:21]}  Rf8 {[%clk 0:01:01]} 35. Kh2 {[%clk 0:00:21]}  Nd7 {[%clk 0:01:01]} 36. Bd1 {[%clk 0:00:20]}  Nc5 {[%clk 0:01:01]} 37. Bc2 {[%clk 0:00:20]}  Kg8 {[%clk 0:00:52]} 38. Rd1 {[%clk 0:00:20]}  Kf7 {[%clk 0:00:49]} 39. Kg1 {[%clk 0:00:18]}  Ke7 {[%clk 0:00:49]} 40. Kf2 {[%clk 0:00:18]}  Bd7 {[%clk 0:00:48]} 41. Ke2 {[%clk 0:00:17]}  Rfg8 {[%clk 0:00:45]} 42. Rdg1 {[%clk 0:00:17]}  Kf6 {[%clk 0:00:40]} 43. Kd2 {[%clk 0:00:13]}  h5 {[%clk 0:00:37]} 44. h4 {[%clk 0:00:12]}  b5 {[%clk 0:00:29]} 45. Kc3 {[%clk 0:00:09]}  a4 {[%clk 0:00:27]} 46. b4 {[%clk 0:00:06]}  Nb7 {[%clk 0:00:23]} 47. cxb5 {[%clk 0:00:04]}  Bxb5 {[%clk 0:00:22]} 48. b3 {[%clk 0:00:02]}  axb3 {[%clk 0:00:22]} 49. Bxb3 {[%clk 0:00:02]}  Nd8 {[%clk 0:00:20]} 50. Nc2 {[%clk 0:00:02]}  Bd7 {[%clk 0:00:19]} 51. Nd4 {[%clk 0:00:03]}  Nf7 {[%clk 0:00:18]} 52. Bd1 {[%clk 0:00:02]}  Rh7 {[%clk 0:00:16]} 53. Ra2 {[%clk 0:00:02]}  Nh6 {[%clk 0:00:14]} 54. Ra7 {[%clk 0:00:02]}  Be8 {[%clk 0:00:12]} 55. b5 {[%clk 0:00:01]}  Ng4 {[%clk 0:00:12]} 0-1


[Site "https://www.chess.com"]

[Event "Titled Tuesday Blitz May 03 Late 2022"]
[White "Bifulco, Michel"]
[Black "Redzisz, Michal"]
[WhiteFideId "828580"]
[BlackFideId "21816107"]
[WhiteElo "2165"]
[BlackElo "2014"]
[Result "0-1"]
[Round "04"]
[TimeControl "180+1"]
[Date "2022.05.03"]
[WhiteClock "0:00:15"]
[BlackClock "0:00:06"]

1. d4 {[%clk 0:03:00]}  Nf6 {[%clk 0:02:56]} 2. Nc3 {[%clk 0:03:01]}  d5 {[%clk 0:02:54]} 3. Bf4 {[%clk 0:03:01]}  g6 {[%clk 0:02:49]} 4. h4 {[%clk 0:03:00]}  h5 {[%clk 0:02:49]} 5. e3 {[%clk 0:03:01]}  Bg7 {[%clk 0:02:49]} 6. Nf3 {[%clk 0:03:01]}  O-O {[%clk 0:02:48]} 7. Qd2 {[%clk 0:03:01]}  c5 {[%clk 0:02:46]} 8. O-O-O {[%clk 0:03:01]}  cxd4 {[%clk 0:02:39]} 9. exd4 {[%clk 0:03:01]}  Nc6 {[%clk 0:02:39]} 10. Ne5 {[%clk 0:03:00]}  Bf5 {[%clk 0:02:33]} 11. f3 {[%clk 0:02:59]}  Nd7 {[%clk 0:01:44]} 12. Nxc6 {[%clk 0:02:45]}  bxc6 {[%clk 0:01:44]} 13. Be2 {[%clk 0:02:45]}  e5 {[%clk 0:01:36]} 14. dxe5 {[%clk 0:02:44]}  Nxe5 {[%clk 0:01:37]} 15. g4 {[%clk 0:02:42]}  hxg4 {[%clk 0:01:36]} 16. fxg4 {[%clk 0:02:34]}  Nxg4 {[%clk 0:01:32]} 17. h5 {[%clk 0:02:34]}  g5 {[%clk 0:00:47]} 18. Bxg5 {[%clk 0:02:30]}  Bxc3 {[%clk 0:00:46]} 19. bxc3 {[%clk 0:02:26]}  Qa5 {[%clk 0:00:47]} 20. Qd4 {[%clk 0:02:07]}  c5 {[%clk 0:00:33]} 21. Qf4 {[%clk 0:01:49]}  d4 {[%clk 0:00:21]} 22. cxd4 {[%clk 0:01:30]}  cxd4 {[%clk 0:00:17]} 23. Bd3 {[%clk 0:01:11]}  Rfe8 {[%clk 0:00:10]} 24. Qxf5 {[%clk 0:00:36]}  Qa3+ {[%clk 0:00:09]} 25. Kb1 {[%clk 0:00:37]}  Rab8+ {[%clk 0:00:08]} 26. Bb5 {[%clk 0:00:37]}  Qb4+ {[%clk 0:00:07]} 27. Ka1 {[%clk 0:00:32]}  Rxb5 {[%clk 0:00:07]} 28. Qxb5 {[%clk 0:00:17]}  Qxb5 {[%clk 0:00:07]} 29. Rxd4 {[%clk 0:00:17]}  Qxg5 {[%clk 0:00:06]} 30. Rg1 {[%clk 0:00:16]}  Qe5 {[%clk 0:00:04]} 31. Rxg4+ {[%clk 0:00:13]}  Kh8 {[%clk 0:00:04]} 32. c3 {[%clk 0:00:14]}  Qe1+ {[%clk 0:00:03]} 33. Kb2 {[%clk 0:00:14]}  Rb8+ {[%clk 0:00:04]} 34. Ka3 {[%clk 0:00:15]}  Qxc3+ {[%clk 0:00:04]} 35. Ka4 {[%clk 0:00:14]}  Qc2+ {[%clk 0:00:04]} 36. Ka3 {[%clk 0:00:14]}  Qb2+ {[%clk 0:00:04]} 37. Ka4 {[%clk 0:00:14]}  Qb5+ {[%clk 0:00:05]} 38. Ka3 {[%clk 0:00:15]}  Qa6+ {[%clk 0:00:05]} 39. Ra4 {[%clk 0:00:15]}  Qd3# {[%clk 0:00:06]} 0-1


[Site "https://www.chess.com"]

[Event "Titled Tuesday Blitz May 03 Late 2022"]
[White "Bluebaum, Matthias"]
[Black "Koellner, Ruben Gideon"]
[WhiteFideId "24651516"]
[BlackFideId "12993093"]
[WhiteElo "2550"]
[BlackElo "2619"]
[Result "1-0"]
[Round "04"]
[TimeControl "180+1"]
[Date "2022.05.03"]
[WhiteClock "0:00:55"]
[BlackClock "0:00:01"]

1. d4 {[%clk 0:03:00]}  Nf6 {[%clk 0:02:52]} 2. c4 {[%clk 0:03:01]}  e6 {[%clk 0:02:52]} 3. Nc3 {[%clk 0:03:01]}  c5 {[%clk 0:02:53]} 4. d5 {[%clk 0:03:02]}  exd5 {[%clk 0:02:54]} 5. cxd5 {[%clk 0:03:03]}  d6 {[%clk 0:02:54]} 6. Nf3 {[%clk 0:03:03]}  g6 {[%clk 0:02:54]} 7. Bg5 {[%clk 0:03:04]}  Bg7 {[%clk 0:02:45]} 8. Nd2 {[%clk 0:03:04]}  h6 {[%clk 0:02:29]} 9. Bh4 {[%clk 0:03:04]}  g5 {[%clk 0:02:29]} 10. Bg3 {[%clk 0:03:05]}  Nh5 {[%clk 0:02:30]} 11. Nc4 {[%clk 0:03:05]}  Nxg3 {[%clk 0:02:29]} 12. hxg3 {[%clk 0:03:06]}  O-O {[%clk 0:02:24]} 13. e4 {[%clk 0:03:06]}  Re8 {[%clk 0:02:23]} 14. Ne3 {[%clk 0:03:03]}  Qa5 {[%clk 0:02:03]} 15. Qd2 {[%clk 0:03:01]}  a6 {[%clk 0:01:34]} 16. Nc4 {[%clk 0:03:01]}  Qc7 {[%clk 0:01:32]} 17. a4 {[%clk 0:03:02]}  Nd7 {[%clk 0:01:27]} 18. Be2 {[%clk 0:03:02]}  Ne5 {[%clk 0:01:25]} 19. Ne3 {[%clk 0:03:02]}  Bd7 {[%clk 0:01:20]} 20. f4 {[%clk 0:03:02]}  Ng6 {[%clk 0:01:19]} 21. fxg5 {[%clk 0:03:01]}  hxg5 {[%clk 0:01:19]} 22. Nf5 {[%clk 0:03:01]}  Bxf5 {[%clk 0:00:32]} 23. exf5 {[%clk 0:03:00]}  Ne5 {[%clk 0:00:33]} 24. Ne4 {[%clk 0:02:58]}  f6 {[%clk 0:00:28]} 25. Kf1 {[%clk 0:02:50]}  g4 {[%clk 0:00:21]} 26. Qf4 {[%clk 0:02:42]}  Qe7 {[%clk 0:00:13]} 27. Re1 {[%clk 0:02:23]}  Rad8 {[%clk 0:00:08]} 28. Nf2 {[%clk 0:02:09]}  Qf7 {[%clk 0:00:07]} 29. Nxg4 {[%clk 0:02:02]}  Qxd5 {[%clk 0:00:06]} 30. Nxe5 {[%clk 0:01:50]}  dxe5 {[%clk 0:00:07]} 31. Qh4 {[%clk 0:01:50]}  Qd4 {[%clk 0:00:05]} 32. Qh7+ {[%clk 0:01:32]}  Kf8 {[%clk 0:00:05]} 33. Rh4 {[%clk 0:01:32]}  e4 {[%clk 0:00:05]} 34. Qg6 {[%clk 0:01:28]}  Rd5 {[%clk 0:00:03]} 35. b3 {[%clk 0:01:17]}  Qe5 {[%clk 0:00:03]} 36. Rf4 {[%clk 0:01:12]}  e3 {[%clk 0:00:02]} 37. Bf3 {[%clk 0:01:07]}  Rd2 {[%clk 0:00:02]} 38. Re4 {[%clk 0:01:07]}  Qb8 {[%clk 0:00:01]} 39. R1xe3 {[%clk 0:01:04]}  Rxe4 {[%clk 0:00:01]} 40. Rxe4 {[%clk 0:01:04]}  Rd7 {[%clk 0:00:01]} 41. Kg1 {[%clk 0:01:01]}  Qd8 {[%clk 0:00:02]} 42. Kh2 {[%clk 0:01:01]}  Rd4 {[%clk 0:00:01]} 43. Bh5 {[%clk 0:00:55]} 1-0


[Site "https://www.chess.com"]

[Event "Titled Tuesday Blitz May 03 Late 2022"]
[White "Cabarkapa, Novak"]
[Black "Romanchuk, Viktor"]
[WhiteFideId "943746"]
[BlackFideId "14109271"]
[WhiteElo "2443"]
[BlackElo "2242"]
[Result "1/2-1/2"]
[Round "04"]
[TimeControl "180+1"]
[Date "2022.05.03"]
[WhiteClock "0:00:06"]
[BlackClock "0:00:03"]

1. d4 {[%clk 0:03:00]}  d5 {[%clk 0:02:59]} 2. Nc3 {[%clk 0:03:00]}  e6 {[%clk 0:02:58]} 3. Bf4 {[%clk 0:03:00]}  Bd6 {[%clk 0:02:58]} 4. g3 {[%clk 0:02:57]}  Nf6 {[%clk 0:02:52]} 5. e3 {[%clk 0:02:56]}  b6 {[%clk 0:02:46]} 6. Qf3 {[%clk 0:02:52]}  Ba6 {[%clk 0:02:43]} 7. Bxa6 {[%clk 0:02:51]}  Nxa6 {[%clk 0:02:43]} 8. O-O-O {[%clk 0:02:51]}  Qd7 {[%clk 0:02:42]} 9. Bxd6 {[%clk 0:02:45]}  Qxd6 {[%clk 0:02:42]} 10. e4 {[%clk 0:02:45]}  dxe4 {[%clk 0:02:40]} 11. Nxe4 {[%clk 0:02:46]}  Nxe4 {[%clk 0:02:40]} 12. Qxe4 {[%clk 0:02:46]}  Qd5 {[%clk 0:02:40]} 13. Qxd5 {[%clk 0:02:42]}  exd5 {[%clk 0:02:40]} 14. Nh3 {[%clk 0:02:42]}  f6 {[%clk 0:02:34]} 15. Nf4 {[%clk 0:02:41]}  c6 {[%clk 0:02:19]} 16. h4 {[%clk 0:02:39]}  Kf7 {[%clk 0:02:18]} 17. h5 {[%clk 0:02:39]}  Rhe8 {[%clk 0:02:17]} 18. Kd2 {[%clk 0:02:40]}  Re4 {[%clk 0:02:16]} 19. c3 {[%clk 0:02:39]}  Rae8 {[%clk 0:02:15]} 20. a4 {[%clk 0:02:36]}  Nc7 {[%clk 0:02:12]} 21. Rhe1 {[%clk 0:02:35]}  Rxe1 {[%clk 0:02:12]} 22. Rxe1 {[%clk 0:02:36]}  Rxe1 {[%clk 0:02:11]} 23. Kxe1 {[%clk 0:02:37]}  Ne6 {[%clk 0:02:11]} 24. Nd3 {[%clk 0:02:31]}  Ke7 {[%clk 0:02:08]} 25. Ke2 {[%clk 0:02:31]}  Ng5 {[%clk 0:02:01]} 26. f3 {[%clk 0:02:29]}  Nf7 {[%clk 0:01:59]} 27. b3 {[%clk 0:02:26]}  Nd6 {[%clk 0:01:58]} 28. g4 {[%clk 0:02:27]}  Nf7 {[%clk 0:01:50]} 29. Ke3 {[%clk 0:02:26]}  g6 {[%clk 0:01:48]} 30. Kf4 {[%clk 0:02:23]}  Nd8 {[%clk 0:01:44]} 31. Kg3 {[%clk 0:02:14]}  Ne6 {[%clk 0:01:39]} 32. f4 {[%clk 0:02:10]}  Nd8 {[%clk 0:01:21]} 33. Kh4 {[%clk 0:02:07]}  Nf7 {[%clk 0:01:20]} 34. g5 {[%clk 0:01:45]}  fxg5+ {[%clk 0:00:48]} 35. fxg5 {[%clk 0:01:46]}  gxh5 {[%clk 0:00:48]} 36. Kxh5 {[%clk 0:01:44]}  Ke6 {[%clk 0:00:48]} 37. Kg4 {[%clk 0:01:44]}  Nd6 {[%clk 0:00:46]} 38. Nf4+ {[%clk 0:01:40]}  Kf7 {[%clk 0:00:43]} 39. Nd3 {[%clk 0:01:37]}  Ke6 {[%clk 0:00:43]} 40. Nf4+ {[%clk 0:01:19]}  Kf7 {[%clk 0:00:42]} 41. Kh5 {[%clk 0:01:20]}  Ne4 {[%clk 0:00:21]} 42. c4 {[%clk 0:01:15]}  dxc4 {[%clk 0:00:18]} 43. bxc4 {[%clk 0:01:16]}  Nd6 {[%clk 0:00:17]} 44. Kh6 {[%clk 0:01:04]}  Kg8 {[%clk 0:00:14]} 45. d5 {[%clk 0:01:04]}  c5 {[%clk 0:00:11]} 46. g6 {[%clk 0:00:51]}  hxg6 {[%clk 0:00:11]} 47. Kxg6 {[%clk 0:00:52]}  Nxc4 {[%clk 0:00:11]} 48. Kf6 {[%clk 0:00:51]}  a6 {[%clk 0:00:12]} 49. Ne6 {[%clk 0:00:34]}  b5 {[%clk 0:00:08]} 50. Nxc5 {[%clk 0:00:35]}  bxa4 {[%clk 0:00:07]} 51. Nxa4 {[%clk 0:00:35]}  Kf8 {[%clk 0:00:08]} 52. Ke6 {[%clk 0:00:35]}  Ke8 {[%clk 0:00:08]} 53. Nc5 {[%clk 0:00:35]}  a5 {[%clk 0:00:07]} 54. Na4 {[%clk 0:00:32]}  Kd8 {[%clk 0:00:08]} 55. Nc5 {[%clk 0:00:30]}  Kc7 {[%clk 0:00:08]} 56. Ke7 {[%clk 0:00:30]}  Kb6 {[%clk 0:00:07]} 57. Na4+ {[%clk 0:00:19]}  Kb5 {[%clk 0:00:07]} 58. Nb2 {[%clk 0:00:14]}  Nb6 {[%clk 0:00:02]} 59. d6 {[%clk 0:00:09]}  a4 {[%clk 0:00:03]} 60. Nxa4 {[%clk 0:00:06]}  Kxa4 {[%clk 0:00:03]} 61. Kd8 {[%clk 0:00:06]}  Kb5 {[%clk 0:00:02]} 62. Kc7 {[%clk 0:00:07]}  Kc5 {[%clk 0:00:03]} 63. d7 {[%clk 0:00:06]}  Nxd7 {[%clk 0:00:03]} 1/2-1/2


[Site "https://www.chess.com"]

[Event "Titled Tuesday Blitz May 03 Late 2022"]
[White "D`Arruda, Ricardo D."]
[Black "Sernecki, Franciszek"]
[WhiteFideId "100692"]
[BlackFideId "1169297"]
[WhiteElo "2422"]
[BlackElo "2165"]
[Result "1-0"]
[Round "04"]
[TimeControl "180+1"]
[Date "2022.05.03"]
[WhiteClock "0:00:53"]
[BlackClock "0:00:02"]

1. Nf3 {[%clk 0:02:51]}  Nf6 {[%clk 0:02:59]} 2. g3 {[%clk 0:02:50]}  e6 {[%clk 0:02:59]} 3. Bg2 {[%clk 0:02:51]}  d5 {[%clk 0:02:59]} 4. O-O {[%clk 0:02:51]}  Be7 {[%clk 0:02:59]} 5. d3 {[%clk 0:02:52]}  c5 {[%clk 0:02:57]} 6. Nbd2 {[%clk 0:02:51]}  Nc6 {[%clk 0:02:56]} 7. e4 {[%clk 0:02:51]}  b6 {[%clk 0:02:56]} 8. e5 {[%clk 0:02:50]}  Nd7 {[%clk 0:02:55]} 9. Re1 {[%clk 0:02:50]}  Qc7 {[%clk 0:02:55]} 10. Qe2 {[%clk 0:02:49]}  Bb7 {[%clk 0:02:55]} 11. Nf1 {[%clk 0:02:48]}  O-O-O {[%clk 0:02:53]} 12. c3 {[%clk 0:02:46]}  Rdg8 {[%clk 0:02:50]} 13. h4 {[%clk 0:02:38]}  h6 {[%clk 0:02:37]} 14. N1h2 {[%clk 0:02:34]}  g5 {[%clk 0:02:36]} 15. hxg5 {[%clk 0:02:35]}  hxg5 {[%clk 0:02:35]} 16. Ng4 {[%clk 0:02:36]}  Ba6 {[%clk 0:02:28]} 17. Qc2 {[%clk 0:02:19]}  b5 {[%clk 0:02:05]} 18. a3 {[%clk 0:02:16]}  Bb7 {[%clk 0:01:54]} 19. Qe2 {[%clk 0:02:09]}  Kb8 {[%clk 0:01:47]} 20. b4 {[%clk 0:02:07]}  a5 {[%clk 0:01:34]} 21. d4 {[%clk 0:01:39]}  c4 {[%clk 0:01:01]} 22. bxa5 {[%clk 0:01:34]}  Nxa5 {[%clk 0:01:00]} 23. Nd2 {[%clk 0:01:34]}  Bc8 {[%clk 0:00:47]} 24. Rb1 {[%clk 0:01:34]}  Qc6 {[%clk 0:00:39]} 25. a4 {[%clk 0:01:31]}  b4 {[%clk 0:00:38]} 26. cxb4 {[%clk 0:01:31]}  Nb7 {[%clk 0:00:35]} 27. a5 {[%clk 0:01:22]}  Qb5 {[%clk 0:00:32]} 28. Nf3 {[%clk 0:01:17]}  Nd8 {[%clk 0:00:20]} 29. Bd2 {[%clk 0:01:16]}  Nc6 {[%clk 0:00:20]} 30. Bc3 {[%clk 0:01:13]}  Ka7 {[%clk 0:00:19]} 31. Ne3 {[%clk 0:01:08]}  g4 {[%clk 0:00:13]} 32. Nh2 {[%clk 0:01:08]}  Bxb4 {[%clk 0:00:09]} 33. Nc2 {[%clk 0:01:03]}  Ba6 {[%clk 0:00:05]} 34. Nxb4 {[%clk 0:01:02]}  Nxa5 {[%clk 0:00:03]} 35. Nxa6 {[%clk 0:00:58]}  Nb3 {[%clk 0:00:03]} 36. Nc5 {[%clk 0:00:52]}  Ndxc5 {[%clk 0:00:02]} 37. dxc5 {[%clk 0:00:53]} 1-0


[Site "https://www.chess.com"]

[Event "Titled Tuesday Blitz May 03 Late 2022"]
[White "Deac, Bogdan-Daniel"]
[Black "Babazada, Khazar"]
[WhiteFideId "1226380"]
[BlackFideId "13413554"]
[WhiteElo "2648"]
[BlackElo "2406"]
[Result "1-0"]
[Round "04"]
[TimeControl "180+1"]
[Date "2022.05.03"]
[WhiteClock "0:00:02"]
[BlackClock "0:00:06"]

1. d4 {[%clk 0:03:00]}  Nf6 {[%clk 0:02:59]} 2. c4 {[%clk 0:03:00]}  e6 {[%clk 0:02:59]} 3. Nf3 {[%clk 0:02:58]}  d5 {[%clk 0:03:00]} 4. g3 {[%clk 0:02:58]}  Bb4+ {[%clk 0:02:58]} 5. Bd2 {[%clk 0:02:58]}  a5 {[%clk 0:02:58]} 6. Bg2 {[%clk 0:02:58]}  dxc4 {[%clk 0:02:59]} 7. Qc2 {[%clk 0:02:58]}  Bxd2+ {[%clk 0:02:58]} 8. Qxd2 {[%clk 0:02:58]}  O-O {[%clk 0:02:54]} 9. Ne5 {[%clk 0:02:53]}  Nbd7 {[%clk 0:02:51]} 10. Nxc4 {[%clk 0:02:53]}  Qe7 {[%clk 0:02:51]} 11. Nxa5 {[%clk 0:02:51]}  e5 {[%clk 0:02:42]} 12. Nxb7 {[%clk 0:02:36]}  exd4 {[%clk 0:02:22]} 13. Na5 {[%clk 0:02:35]}  Ne4 {[%clk 0:02:23]} 14. Nc6 {[%clk 0:02:07]}  Qe6 {[%clk 0:02:16]} 15. Nxd4 {[%clk 0:02:01]}  Qg6 {[%clk 0:02:16]} 16. Qf4 {[%clk 0:01:55]}  Bb7 {[%clk 0:02:17]} 17. O-O {[%clk 0:01:50]}  Ndf6 {[%clk 0:02:00]} 18. Qxc7 {[%clk 0:01:48]}  Rab8 {[%clk 0:01:53]} 19. Nc3 {[%clk 0:01:45]}  h5 {[%clk 0:01:44]} 20. Nc6 {[%clk 0:01:28]}  Bxc6 {[%clk 0:01:40]} 21. Qxc6 {[%clk 0:01:28]}  Nd2 {[%clk 0:01:32]} 22. Rfd1 {[%clk 0:01:23]}  Rxb2 {[%clk 0:01:33]} 23. Nd5 {[%clk 0:01:23]}  Kh8 {[%clk 0:01:14]} 24. Nxf6 {[%clk 0:01:10]}  gxf6 {[%clk 0:01:13]} 25. Qc3 {[%clk 0:01:10]}  Rc2 {[%clk 0:01:04]} 26. Qd3 {[%clk 0:01:10]}  Qxd3 {[%clk 0:00:54]} 27. exd3 {[%clk 0:01:10]}  h4 {[%clk 0:00:55]} 28. a4 {[%clk 0:01:05]}  Nb3 {[%clk 0:00:55]} 29. Ra3 {[%clk 0:00:57]}  Na5 {[%clk 0:00:52]} 30. d4 {[%clk 0:00:50]}  Rb8 {[%clk 0:00:43]} 31. d5 {[%clk 0:00:45]}  Nc4 {[%clk 0:00:40]} 32. Rf3 {[%clk 0:00:37]}  Kg7 {[%clk 0:00:41]} 33. d6 {[%clk 0:00:36]}  Rd2 {[%clk 0:00:41]} 34. Ra1 {[%clk 0:00:24]}  Na5 {[%clk 0:00:34]} 35. gxh4 {[%clk 0:00:15]}  Rxd6 {[%clk 0:00:32]} 36. Rf5 {[%clk 0:00:15]}  Nb3 {[%clk 0:00:29]} 37. Rb1 {[%clk 0:00:10]}  Nd4 {[%clk 0:00:26]} 38. Rxb8 {[%clk 0:00:09]}  Nxf5 {[%clk 0:00:27]} 39. Bf1 {[%clk 0:00:10]}  Nxh4 {[%clk 0:00:25]} 40. Rb4 {[%clk 0:00:07]}  Nf3+ {[%clk 0:00:20]} 41. Kg2 {[%clk 0:00:07]}  Ne1+ {[%clk 0:00:18]} 42. Kg3 {[%clk 0:00:08]}  Nc2 {[%clk 0:00:17]} 43. Rg4+ {[%clk 0:00:06]}  Kh6 {[%clk 0:00:18]} 44. a5 {[%clk 0:00:07]}  f5 {[%clk 0:00:16]} 45. Ra4 {[%clk 0:00:05]}  Rd1 {[%clk 0:00:12]} 46. Be2 {[%clk 0:00:04]}  Rd2 {[%clk 0:00:10]} 47. Bb5 {[%clk 0:00:04]}  Nd4 {[%clk 0:00:08]} 48. Bf1 {[%clk 0:00:04]}  Kg5 {[%clk 0:00:08]} 49. h4+ {[%clk 0:00:03]}  Kf6 {[%clk 0:00:07]} 50. a6 {[%clk 0:00:04]}  f4+ {[%clk 0:00:05]} 51. Kg2 {[%clk 0:00:04]}  f3+ {[%clk 0:00:04]} 52. Kg3 {[%clk 0:00:04]}  Rd1 {[%clk 0:00:05]} 53. a7 {[%clk 0:00:04]}  Rxf1 {[%clk 0:00:05]} 54. a8=Q {[%clk 0:00:03]}  Rg1+ {[%clk 0:00:05]} 55. Kf4 {[%clk 0:00:03]}  Ne6+ {[%clk 0:00:06]} 56. Kxf3 {[%clk 0:00:03]}  Rg8 {[%clk 0:00:06]} 57. Qxg8 {[%clk 0:00:02]} 1-0


[Site "https://www.chess.com"]

[Event "Titled Tuesday Blitz May 03 Late 2022"]
[White "Dimakiling, Oliver"]
[Black "Stevens, Christian"]
[WhiteFideId "5202248"]
[BlackFideId "2604450"]
[WhiteElo "2426"]
[BlackElo "2504"]
[Result "0-1"]
[Round "04"]
[TimeControl "180+1"]
[Date "2022.05.03"]
[WhiteClock "0:01:17"]
[BlackClock "0:01:05"]

1. c4 {[%clk 0:03:00]}  c5 {[%clk 0:02:58]} 2. Nc3 {[%clk 0:03:01]}  Nc6 {[%clk 0:02:55]} 3. g3 {[%clk 0:03:01]}  g6 {[%clk 0:02:54]} 4. h4 {[%clk 0:03:01]}  h5 {[%clk 0:02:51]} 5. Nh3 {[%clk 0:03:00]}  Nh6 {[%clk 0:02:50]} 6. Nf4 {[%clk 0:03:00]}  Nf5 {[%clk 0:02:50]} 7. Bg2 {[%clk 0:03:00]}  Bg7 {[%clk 0:02:49]} 8. d3 {[%clk 0:03:00]}  d6 {[%clk 0:02:48]} 9. a3 {[%clk 0:02:58]}  a6 {[%clk 0:02:47]} 10. Bd2 {[%clk 0:02:57]}  Bd7 {[%clk 0:02:46]} 11. Rb1 {[%clk 0:02:57]}  Rb8 {[%clk 0:02:46]} 12. b4 {[%clk 0:02:57]}  cxb4 {[%clk 0:02:46]} 13. axb4 {[%clk 0:02:56]}  b5 {[%clk 0:02:47]} 14. c5 {[%clk 0:02:56]}  dxc5 {[%clk 0:02:42]} 15. bxc5 {[%clk 0:02:56]}  Bd4 {[%clk 0:02:37]} 16. Ne4 {[%clk 0:02:54]}  O-O {[%clk 0:02:16]} 17. e3 {[%clk 0:02:53]}  Bg7 {[%clk 0:02:16]} 18. O-O {[%clk 0:02:52]}  a5 {[%clk 0:02:08]} 19. d4 {[%clk 0:02:50]}  e5 {[%clk 0:02:07]} 20. d5 {[%clk 0:02:37]}  exf4 {[%clk 0:02:05]} 21. dxc6 {[%clk 0:02:37]}  Bxc6 {[%clk 0:02:00]} 22. exf4 {[%clk 0:02:33]}  b4 {[%clk 0:01:57]} 23. Re1 {[%clk 0:02:10]}  b3 {[%clk 0:01:53]} 24. Nd6 {[%clk 0:01:46]}  Nxd6 {[%clk 0:01:30]} 25. Bxc6 {[%clk 0:01:45]}  Nc4 {[%clk 0:01:30]} 26. Bc1 {[%clk 0:01:31]}  Qxd1 {[%clk 0:01:24]} 27. Rxd1 {[%clk 0:01:31]}  b2 {[%clk 0:01:24]} 28. Bd2 {[%clk 0:01:29]}  Na3 {[%clk 0:01:20]} 29. Bxa5 {[%clk 0:01:28]}  Nxb1 {[%clk 0:01:21]} 30. Rxb1 {[%clk 0:01:27]}  Rfc8 {[%clk 0:01:21]} 31. Be4 {[%clk 0:01:18]}  Rxc5 {[%clk 0:01:20]} 32. Bd2 {[%clk 0:01:19]}  Rc4 {[%clk 0:01:16]} 33. f3 {[%clk 0:01:18]}  Ra4 {[%clk 0:01:14]} 34. Kf2 {[%clk 0:01:17]}  Ra1 {[%clk 0:01:14]} 35. Ke2 {[%clk 0:01:17]}  Re8 {[%clk 0:01:05]} 0-1


[Site "https://www.chess.com"]